Workbook

Sheet Sm Nd
B1: qp | C1: qp | D1: qfp | E1: qfp | F1: mafg | G1: mafg | H1: qp | I1: qfp | J1: mafg | K1: dol | L1: dol
A2: Lab # | B2: AB1 | C2: AB2 | D2: AB3 | E2: AB4 | F2: AB5 | G2: AB6 | H2: AB7 | I2: AB8 | J2: AB9 | K2: AB10 | L2: AB11
A3: sample | B3: EX21982 | C3: EX096916 | D3: EY118226 | E3: EY118688 | F3: EY118881 | G3: EY118850 | H3: EX096238 | I3: EY118769 | J3: EY118857 | K3: EX095883 | L3: EX095900 | N3: USGS G2 | O3: USGS G2 | P3: USGS G2
A4: input age of rock T (Ma) | B4: 1611 | C4: 1615 | D4: 1641 | E4: 1641 | F4: 1625 | G4: 1625 | H4: 1617 | I4: 1641 | J4: 1625 | K4: 1620 | L4: 1620
A5: Unmixed 143/144Nd | B5: =MarlinasNdIC(B32,B33,B34,B35,B37) -> 0.5116823753 | C5: =MarlinasNdIC(C32,C33,C34,C35,C37) -> 0.5118356768 | D5: 0.5114084217 | E5: 0.5113160135 | F5: 0.5121773374 | G5: 0.5122586234 | H5: 0.5118351396 | I5: 0.5114592192 | J5: 0.5122692995 | K5: 0.5117471779 | L5: 0.5117739474 | N5: 0.5122294165 | O5: 0.5122183484 | P5: =MarlinasNdIC(P32,P33,P34,P35,P37) -> 0.5122206601
A6: Nd ugg-1 | B6: =MarlinasNdID(B32,B33,B34,B37,100) -> 165.407484 | C6: =MarlinasNdID(C32,C33,C34,C37,100) -> 61.6202967 | D6: 63.07596878 | E6: 57.48207451 | F6: 48.56254728 | G6: 11.61936589 | H6: 82.04595103 | I6: 46.70877849 | J6: 15.76988637 | K6: 96.38152652 | L6: 74.05483458 | N6: 52.4629891 | O6: 53.13037465 | P6: =MarlinasNdID(P32,P33,P34,P37,100) -> 52.30929404
A7: Sm ugg-1 | B7: =SmD(B32,B33,B34,B38,B39,50) -> 28.6679646 | C7: =SmD(C32,C33,C34,C38,C39,50) -> 12.91538533 | D7: 10.30135476 | E7: 8.456873712 | F7: 11.04629916 | G7: 2.88088057 | H7: 17.06495684 | I7: 7.987810504 | J7: 3.959602219 | K7: 16.66600408 | L7: 13.52307741 | N7: 6.90741351 | O7: 6.979579433 | P7: =SmD(P32,P33,P34,P38,P39,50) -> 6.930879079
A8: 147Sm/144Nd | B8: =(B7/150.36*0.15)/(B6/144.24*0.238) -> 0.1047874815 | C8: =(C7/150.36*0.15)/(C6/144.24*0.238) -> 0.1267217849 | D8: 0.09874113455 | E8: 0.08894982758 | F8: 0.1375254392 | G8: 0.1499030693 | H8: 0.1257522428 | I8: 0.1033943821 | J8: 0.1518066141 | K8: 0.1045455091 | L8: 0.1104052732 | N8: 0.07960312611 | O8: 0.07942442411 | P8: =(P7/150.36*0.15)/(P6/144.24*0.238) -> 0.08010823474
A9: eNd (T=0) | B9: =((B5/$B$23)-1)*10000 -> -18.64131636 | C9: =((C5/$B$23)-1)*10000 -> -15.65087347 | D9: -23.98531229 | E9: -25.78791501 | F9: -8.98611805 | G9: -7.400477558 | H9: -15.66135099 | I9: -22.99440928 | J9: -7.192219449 | K9: -17.37721488 | L9: -16.85502426 | N9: -7.970214836 | O9: -8.186119063 | P9: =((P5/$B$23)-1)*10000 -> -8.141024885
A11: 143Nd/144Nd (T) | B11: =B5-B8*(EXP($B$22*B4*1000000)-1) -> 0.5105725042 | C11: =C5-C8*(EXP($B$22*C4*1000000)-1) -> 0.5104901352 | D11: 0.5103430112 | E11: 0.5103562505 | F11: 0.5107079919 | G11: 0.5106570332 | H11: 0.5104982305 | I11: 0.5103436004 | J11: 0.5106473715 | K11: 0.5106336508 | L11: 0.5105980072 | N11: 0.5122294165 | O11: 0.5122183484 | P11: =P5-P8*(EXP($B$22*P4*1000000)-1) -> 0.5122206601 | Q11: =AVERAGE(N11:P11) -> 0.5122228084 | R11: =_xlfn.STDEV.S(N11:P11)*2 -> 1.167676336e-05
A12: eNd (T) | B12: =((B11/B16)-1)*10000 -> 0.3294506129 | C12: =((C11/C16)-1)*10000 -> -1.182078143 | D12: -3.402187598 | E12: -3.142856026 | F12: 3.339622261 | G12: 2.341482478 | H12: -0.972621168 | I12: -3.390646147 | J12: 2.152236865 | K12: 1.756199202 | L12: 1.058049856 | N12: -7.970214836 | O12: -8.186119063 | P12: =((P11/P16)-1)*10000 -> -8.141024885
A13: TDM (Ma) | B13: =(1/$B$22)*(LN((1+(B5-$B$25)/(B8-$B$26))))/1000000 -> 2031.85338 | C13: =(1/$B$22)*(LN((1+(C5-$B$25)/(C8-$B$26))))/1000000 -> 2272.513151 | D13: 2283.30709 | E13: 2217.421306 | F13: 1920.028444 | G13: 2095.522165 | H13: 2248.780134 | I13: 2309.350245 | J13: 2133.025493 | K13: 1938.45657 | L13: 2008.046294 | N13: 1039.934198 | O13: 1051.00676 | P13: =(1/$B$22)*(LN((1+(P5-$B$25)/(P8-$B$26))))/1000000 -> 1053.723984
A14: TCHUR (Ma) | B14: =(1/$B$22)*LN((1+((B5-$B$23)/(B8-$B$24))))/1000000 -> 1583.278454 | C14: =(1/$B$22)*LN((1+((C5-$B$23)/(C8-$B$24))))/1000000 -> 1745.614912 | D14: 1909.255329 | E14: 1866.299929 | F14: 1187.727551 | G14: 1237.218047 | H14: 1723.006635 | I14: 1921.680993 | J14: 1253.432112 | K14: 1472.567813 | L14: 1525.155036 | N14: 533.0544634 | O14: 546.6350519 | P14: =(1/$B$22)*LN((1+((P5-$B$23)/(P8-$B$24))))/1000000 -> 546.8146191
A15: DM at age of rock (T) | B15: =($B$25-$B$26*(EXP($B$22*B4*1000000)-1)) -> 0.5108780936 | C15: =($B$25-$B$26*(EXP($B$22*C4*1000000)-1)) -> 0.5108724227 | D15: 0.5108355587 | E15: 0.5108355587 | F15: 0.510858245 | G15: 0.510858245 | H15: 0.5108695873 | I15: 0.5108355587 | J15: 0.510858245 | K15: 0.510865334 | L15: 0.510865334 | N15: 0.51315 | O15: 0.51315 | P15: =($B$25-$B$26*(EXP($B$22*P4*1000000)-1)) -> 0.51315
A16: CHUR at age of rock (T) | B16: =$B$23-$B$24*(EXP($B$22*B4*1000000)-1) -> 0.5105556839 | C16: =$B$23-$B$24*(EXP($B$22*C4*1000000)-1) -> 0.5105504863 | D16: 0.5105166986 | E16: 0.5105166986 | F16: 0.5105374917 | G16: 0.5105374917 | H16: 0.5105478874 | I16: 0.5105166986 | J16: 0.5105374917 | K16: 0.5105439891 | L16: 0.5105439891 | N16: 0.512638 | O16: 0.512638 | P16: =$B$23-$B$24*(EXP($B$22*P4*1000000)-1) -> 0.512638
A19: JNdi-1 Phoenix TIMS bias measurements 14/8/2020 to 5/9/2020, 143/144Nd = .512103±.000008 (2sd), n=5.
A21: Nd Model assumptions
A22: Lambda | B22: 6.54e-12 | C22: a-1
A23: 143Nd/144Nd CHUR T=0 | B23: 0.512638 | C23: Goldstein et al (1984)
A24: 147Sm/144Nd CHUR T=0 | B24: 0.1966 | C24: Goldstein et al (1984)
A25: 143Nd/144Nd DM T=0 | B25: 0.51315 | C25: Goldstein et al (1984)
A26: 147Sm/144Nd DM T=0 | B26: 0.2145 | C26: Goldstein et al (1984)
A27: Earth Age | B27: 4615000000 | C27: a
A29: Sample measurements
B30: High Pressure | C30: High Pressure | D30: High Pressure | E30: High Pressure | F30: High Pressure | G30: High Pressure | H30: High Pressure | I30: High Pressure | J30: High Pressure | K30: High Pressure | L30: High Pressure | N30: High Pressure | O30: High Pressure | P30: High Pressure
A31: bomb# | B31: 20 | C31: 26 | D31: 4 | E31: 104 | F31: 13 | G31: 35 | H31: 33 | I31: 41 | J31: 39 | K31: 32 | L31: 105 | N31: 103 | O31: 34 | P31: 22
A32: Sm Nd spike | B32: H rm3 | C32: H rm3 | D32: H rm3 | E32: H rm3 | F32: H rm3 | G32: H rm3 | H32: H rm3 | I32: H rm3 | J32: H rm3 | K32: H rm3 | L32: H rm3 | N32: H rm3 | O32: H rm3 | P32: H rm3
A33: sample wt (g) | B33: 0.05111 | C33: 0.045767 | D33: 0.040223 | E33: 0.048536 | F33: 0.050993 | G33: 0.188239 | H33: 0.048395 | I33: 0.064828 | J33: 0.207811 | K33: 0.056589 | L33: 0.039544 | N33: 0.047071 | O33: 0.027532 | P33: 0.054839
A34: Sm Nd spike wt (g) | B34: 1.800144 | C34: 0.690357 | D34: 0.531705 | E34: 0.554382 | F34: 0.544009 | G34: 0.539695 | H34: 0.849554 | I34: 0.487132 | J34: 0.611342 | K34: 1.040516 | L34: 1.009753 | N34: 0.487803 | O34: 0.530292 | P34: 0.486642
A35: measured 143/144Nd | B35: 0.5117390391 | C35: 0.5119006003 | D35: 0.5114644999 | E35: 0.5113692875 | F35: 0.5122352062 | G35: 0.512323502 | H35: 0.5118918991 | I35: 0.511502237 | J35: 0.5123183588 | K35: 0.5117978857 | L35: 0.5118654505 | N35: 0.512281403 | O35: 0.5123136689 | P35: 0.512265324
A36: 2 se | B36: 2.194481951e-06 | C36: 1.524550301e-06 | D36: 1.776111925e-06 | E36: 1.634945803e-06 | F36: 3.461804388e-06 | G36: 2.066524497e-06 | H36: 1.836911941e-06 | I36: 1.585318362e-06 | J36: 1.940666759e-06 | K36: 2.002158361e-06 | L36: 1.796533333e-06 | N36: 1.866065241e-06 | O36: 2.015876003e-06 | P36: 2.131640166e-06
A37: measured 150/144 Nd | B37: 0.4892553412 | C37: 0.5269708179 | D37: 0.4852649217 | E37: 0.4723946803 | F37: 0.4972392893 | G37: 0.5292846889 | H37: 0.4904669634 | I37: 0.4275534403 | J37: 0.4579865896 | K37: 0.4630010759 | L37: 0.6452400455 | N37: 0.4710019836 | O37: 0.666142809 | P37: 0.4379523156
A38: measured 147/149 Sm | B38: 5.981057505 | C38: 5.76048892 | D38: 6.175820711 | E38: 6.410894227 | F38: 4.939860198 | G38: 5.074145773 | H38: 5.2146814 | I38: 4.862910013 | J38: 4.08396617 | K38: 5.454470845 | L38: 8.455128369 | N38: 6.995379125 | O38: 11.68000851 | P38: 6.125877258
A39: measured 152/149 Sm | B39: 1.897465286 | C39: 1.89143611 | D39: 1.90375968 | E39: 1.91322126 | F39: 1.912948784 | G39: 1.901345618 | H39: 1.895529909 | I39: 1.901119147 | J39: 1.904774622 | K39: 1.921049115 | L39: 1.898350667 | N39: 1.90438619 | O39: 1.874169392 | P39: 1.922140974
A41: Nd ugg-1 (as supplied) | B41: 160.5 | C41: 60.4 | D41: 63.3 | E41: 55.3 | F41: 49.1 | G41: 11.5 | H41: 81.5 | I41: 49.6 | J41: 15.7 | K41: 93.2 | L41: 81.3
A42: Sm ugg-1 (as supplied)

Sheet Procedure
A1: Procedure notes
A3: 1) Sample digestion and spiking
B4: 50-200mg powdered samples were dissolved in Parr or CSIRO high pressure digestion vessels (bombs) with an optimized amount of a (150Nd + 147Sm) mixed spike.
B5: 1) 2mL 7M HNO3 + 4mL 28M HF were added then dried at 140C on hotplate. 1mL 15M HNO3 was also added just before dryness.
B6: 2) Followed by high pressure digestion in 7M HNO3 + 4mL 28M HF at 190C in laboratory oven for at least 96 hours.
B7: 3) Evaporation to almost dryness on hotplate at 140C, then addition of 1mL 15M HNO3 before taken to dryness.
B8: 4) Redissolved in 8mL 6M HCl for conversion to chlorides.
A10: 2) Sm Nd separation by column chromatography.
B11: First column pass,
B12: 1) 2ml AGW X8 200-400 mesh resin in Polyprep columns.
B13: Second column pass,
B14: 2) 1mL eichrom 50-100u Ln resin in quartz glass columns.
A16: 3) Isotopic abundance ratio measurements carried out on Isotopx Phoenix thermal ionization mass spectrometer (TIMS).
B17: 1) Nd - multidynamic measurement.
C18: 1) At least 5 blocks of 20 cycles (100 ratios) of multidynamic measurements taken.
C19: 2) Normalization to 146/144Nd = .7219, using exponential mass fractionation correction.
B20: 2) Sm - static measurement.
C21: 1) Five blocks of 20 cycles (100 ratios) of static measurements were taken.
A23: 4) Reagents.
B24: 1) Hydrochloric, hydrofluoric and nitric acids distilled in Savillex DST-1000 PFA stills.
B25: 2) Ultrapure deionised water produced using a Millipore Direct-Q 3 system.
